[Event "56th Biel Festival Rapid 2023"]
[Site "Biel"]
[Date "2024.04.13"]
[Round "1.2"]
[White "Malli, Shiivesh Sunil"]
[Black "Yuffa, Daniil"]
[Result "*"]
[WhiteElo "1835"]
[BlackElo "2603"]
[PlyCount "37"]
[EventDate "2023.07.16"]
[EventType "swiss"]
[EventCountry "SUI"]
[TimeControl "900+5"]

1. c4 {[%emt 0:00:18]} g6 {[%emt 0:00:19]} 2. Nc3 {[%emt 0:00:02]} Bg7 {[%emt 0:00:03]} 3. g3 {[%emt 0:00:01]} c5 {[%emt 0:00:04]} 4. Bg2 {[%emt 0:00:02]} Nc6 {[%emt 0:00:02]} 5. d3 {[%emt 0:00:03]} e6 {[%emt 0:00:06]} 6. e4 {[%emt 0:00:03]} Nge7 {[%emt 0:00:07]} 7. Nge2 {[%emt 0:00:04]} b6 {[%emt 0:00:09]} 8. O-O {[%emt 0:00:09]} Bb7 {[%emt 0:00:05]} 9. f4 {[%emt 0:00:14]} d6 {[%emt 0:00:10]} 10. Be3 {[%emt 0:00:04]} Nd4 {[%emt 0:00:52]} 11. Qd2 {[%emt 0:00:26]} Qd7 {[%emt 0:00:08]} 12. Bf2 {[%emt 0:01:01]} O-O {[%emt 0:01:06]} 13. Nxd4 {[%emt 0:00:03]} cxd4 {[%emt 0:00:08]} 14. Ne2 {[%emt 0:00:03]} e5 {[%emt 0:00:02]} 15. h3 {[%emt 0:01:24]} f5 {[%emt 0:00:33]} 16. Rae1 {[%emt 0:00:15]} fxe4 {[%emt 0:00:17]} 17. dxe4 {[%emt 0:00:03]} b5 {[%emt 0:01:04]} 18. cxb5 {[%emt 0:01:55]} Qxb5 {[%emt 0:00:28]} 19. Rc1 {[%emt 0:00:09]} *

[Event "56th Biel Festival Rapid 2023"]
[Site "Biel"]
[Date "2024.04.13"]
[Round "1.3"]
[White "Riff, Jean-Noel"]
[Black "Lang, Fabian"]
[Result "*"]
[WhiteElo "2401"]
[BlackElo "1914"]
[PlyCount "26"]
[EventDate "2023.07.16"]
[EventType "swiss"]
[EventCountry "SUI"]
[TimeControl "900+5"]

1. e4 {[%emt 0:01:08]} e5 {[%emt 0:00:02]} 2. Nf3 {[%emt 0:00:02]} Nc6 {[%emt 0:00:01]} 3. Bb5 {[%emt 0:00:02]} f5 {[%emt 0:00:02]} 4. d4 {[%emt 0:00:07]} fxe4 {[%emt 0:00:05]} 5. Nxe5 {[%emt 0:00:01]} Nf6 {[%emt 0:00:36]} 6. O-O {[%emt 0:00:23]} a6 {[%emt 0:01:12]} 7. Ba4 {[%emt 0:00:14]} Ne7 {[%emt 0:02:50]} 8. Bg5 {[%emt 0:00:45]} Neg8 {[%emt 0:01:31]} 9. Nc3 {[%emt 0:00:50]} c6 {[%emt 0:00:47]} 10. Nxe4 {[%emt 0:00:24]} d5 {[%emt 0:00:02]} 11. Nxf6+ {[%emt 0:00:08]} Nxf6 {[%emt 0:00:02]} 12. c3 {[%emt 0:00:07]} Be7 {[%emt 0:00:26]} 13. Bc2 {[%emt 0:00:03]} Be6 {[%emt 0:00:29]} *

[Event "56th Biel Festival Rapid 2023"]
[Site "Biel"]
[Date "2024.04.13"]
[Round "1.4"]
[White "Ragios, Konstantinos"]
[Black "Rodrigue-Lemieux, Shawn"]
[Result "*"]
[WhiteElo "1925"]
[BlackElo "2495"]
[PlyCount "29"]
[EventDate "2023.07.16"]
[EventType "swiss"]
[EventCountry "SUI"]
[TimeControl "900+5"]

1. e4 {[%emt 0:00:11]} c5 {[%emt 0:00:02]} 2. Nf3 {[%emt 0:00:05]} Nc6 {[%emt 0:00:02]} 3. d4 {[%emt 0:00:07]} cxd4 {[%emt 0:00:02]} 4. Nxd4 {[%emt 0:00:03]} Nf6 {[%emt 0:00:02]} 5. Nc3 {[%emt 0:00:09]} e5 {[%emt 0:00:02]} 6. Ndb5 {[%emt 0:00:32]} d6 {[%emt 0:00:01]} 7. Nd5 {[%emt 0:00:42]} Nxd5 {[%emt 0:00:03]} 8. exd5 {[%emt 0:00:02]} Nb8 {[%emt 0:00:03]} 9. c4 {[%emt 0:00:25]} Be7 {[%emt 0:00:02]} 10. Bd3 {[%emt 0:01:13]} O-O {[%emt 0:00:06]} 11. O-O {[%emt 0:00:36]} Nd7 {[%emt 0:00:05]} 12. f4 {[%emt 0:00:47]} Bf6 {[%emt 0:01:21]} 13. Kh1 {[%emt 0:00:56]} Nc5 {[%emt 0:00:06]} 14. Bc2 {[%emt 0:00:24]} e4 {[%emt 0:01:41]} 15. Rb1 {[%emt 0:01:44]} *

[Event "56th Biel Festival Rapid 2023"]
[Site "Biel"]
[Date "2024.04.13"]
[Round "1.5"]
[White "Bharath Subramaniyam H"]
[Black "Pheng, Wissam"]
[Result "*"]
[WhiteElo "2488"]
[BlackElo "1940"]
[PlyCount "30"]
[EventDate "2023.07.16"]
[EventType "swiss"]
[EventCountry "SUI"]
[TimeControl "900+5"]

1. d4 {[%emt 0:00:14]} d5 {[%emt 0:00:03]} 2. Nf3 {[%emt 0:00:04]} c6 {[%emt 0:00:01]} 3. Bf4 {[%emt 0:00:02]} Qb6 {[%emt 0:00:02]} 4. Qc1 {[%emt 0:00:10]} Bf5 {[%emt 0:00:10]} 5. e3 {[%emt 0:00:05]} Nf6 {[%emt 0:00:17]} 6. c4 {[%emt 0:00:06]} e6 {[%emt 0:00:59]} 7. Nc3 {[%emt 0:00:01]} Nbd7 {[%emt 0:00:25]} 8. Be2 {[%emt 0:00:08]} dxc4 {[%emt 0:00:51]} 9. O-O {[%emt 0:00:20]} Bb4 {[%emt 0:01:55]} 10. Nd2 {[%emt 0:00:34]} O-O {[%emt 0:00:34]} 11. Nxc4 {[%emt 0:00:08]} Qd8 {[%emt 0:00:07]} 12. Nd6 {[%emt 0:00:16]} Qe7 {[%emt 0:02:24]} 13. Nxb7 {[%emt 0:00:49]} Nb6 {[%emt 0:00:10]} 14. Nc5 {[%emt 0:00:27]} Bxc5 {[%emt 0:00:18]} 15. dxc5 {[%emt 0:00:02]} Qxc5 {[%emt 0:00:02]} *

[Event "56th Biel Festival Rapid 2023"]
[Site "Biel"]
[Date "2024.04.13"]
[Round "1.6"]
[White "Binzegger, Urs"]
[Black "Pranav Anand"]
[Result "*"]
[WhiteElo "1828"]
[BlackElo "2510"]
[PlyCount "44"]
[EventDate "2023.07.16"]
[EventType "swiss"]
[EventCountry "SUI"]
[TimeControl "900+5"]

1. e4 {[%emt 0:00:17]} c5 {[%emt 0:00:02]} 2. Nf3 {[%emt 0:00:02]} Nc6 {[%emt 0:00:02]} 3. d4 {[%emt 0:00:01]} cxd4 {[%emt 0:00:01]} 4. Nxd4 {[%emt 0:00:03]} Nf6 {[%emt 0:00:03]} 5. Nc3 {[%emt 0:00:03]} d6 {[%emt 0:00:01]} 6. f3 {[%emt 0:00:27]} e5 {[%emt 0:00:02]} 7. Nb3 {[%emt 0:00:03]} Be6 {[%emt 0:00:02]} 8. Be3 {[%emt 0:00:02]} Be7 {[%emt 0:00:02]} 9. g4 {[%emt 0:00:02]} d5 {[%emt 0:00:39]} 10. g5 {[%emt 0:00:19]} d4 {[%emt 0:00:02]} 11. gxf6 {[%emt 0:00:02]} Bxf6 {[%emt 0:00:01]} 12. Bf2 {[%emt 0:00:49]} dxc3 {[%emt 0:00:04]} 13. bxc3 {[%emt 0:00:05]} Qc7 {[%emt 0:00:32]} 14. Bd3 {[%emt 0:00:08]} b6 {[%emt 0:00:18]} 15. O-O {[%emt 0:00:15]} O-O {[%emt 0:00:19]} 16. Kh1 {[%emt 0:00:02]} Ne7 {[%emt 0:00:20]} 17. Rg1 {[%emt 0:00:23]} Qxc3 {[%emt 0:00:22]} 18. Nd2 {[%emt 0:00:56]} Ng6 {[%emt 0:00:13]} 19. Nf1 {[%emt 0:00:20]} Nf4 {[%emt 0:00:17]} 20. Ng3 {[%emt 0:00:33]} Rfd8 {[%emt 0:00:48]} 21. Qe1 {[%emt 0:00:22]} Qxe1 {[%emt 0:00:28]} 22. Bxe1 {[%emt 0:00:07]} g6 {[%emt 0:01:59]} *

[Event "56th Biel Festival Rapid 2023"]
[Site "Biel"]
[Date "2024.04.13"]
[Round "1.8"]
[White "Tureshbayev, Anuar"]
[Black "Huang, Renjie"]
[Result "0-1"]
[WhiteElo "1845"]
[BlackElo "2445"]
[PlyCount "30"]
[EventDate "2023.07.16"]
[EventType "swiss"]
[EventCountry "SUI"]
[TimeControl "900+5"]

1. e4 {[%emt 0:00:11]} c5 {[%emt 0:00:01]} 2. d4 {[%emt 0:00:01]} cxd4 {[%emt 0:00:02]} 3. c3 {[%emt 0:00:02]} Nf6 {[%emt 0:00:15]} 4. e5 {[%emt 0:00:03]} Nd5 {[%emt 0:00:06]} 5. cxd4 {[%emt 0:00:04]} Nc6 {[%emt 0:00:02]} 6. Nc3 {[%emt 0:00:02]} e6 {[%emt 0:00:26]} 7. Nxd5 {[%emt 0:00:03]} exd5 {[%emt 0:00:02]} 8. Nf3 {[%emt 0:00:03]} d6 {[%emt 0:00:01]} 9. exd6 {[%emt 0:00:09]} Bxd6 {[%emt 0:00:02]} 10. Bd3 {[%emt 0:00:03]} O-O {[%emt 0:00:20]} 11. O-O {[%emt 0:00:03]} Bg4 {[%emt 0:00:02]} 12. Be2 {[%emt 0:00:12]} Re8 {[%emt 0:00:11]} 13. Be3 {[%emt 0:00:04]} f5 {[%emt 0:00:14]} 14. Ne5 {[%emt 0:00:33]} Bxe2 {[%emt 0:00:19]} 15. Nxc6 {[%emt 0:00:03]} Bxh2+ {[%emt 0:00:12]} 0-1

[Event "56th Biel Festival Rapid 2023"]
[Site "Biel"]
[Date "2024.04.13"]
[Round "1.9"]
[White "Sukandar, Irine Kharisma"]
[Black "Kleinert, Juergen"]
[Result "1-0"]
[WhiteElo "2358"]
[BlackElo "1802"]
[PlyCount "25"]
[EventDate "2023.07.16"]
[EventType "swiss"]
[EventCountry "SUI"]
[TimeControl "900+5"]

1. e4 {[%emt 0:00:14]} e5 {[%emt 0:00:02]} 2. Nf3 {[%emt 0:00:03]} d5 {[%emt 0:00:03]} 3. Nxe5 {[%emt 0:00:27]} Bd6 {[%emt 0:00:02]} 4. d4 {[%emt 0:00:08]} dxe4 {[%emt 0:00:03]} 5. Nc4 {[%emt 0:00:12]} Be7 {[%emt 0:00:01]} 6. Nc3 {[%emt 0:00:19]} Bf5 {[%emt 0:00:22]} 7. Bf4 {[%emt 0:00:08]} c6 {[%emt 0:00:24]} 8. d5 {[%emt 0:00:08]} Bb4 {[%emt 0:00:33]} 9. Qd4 {[%emt 0:00:23]} Nf6 {[%emt 0:00:04]} 10. Qe5+ {[%emt 0:00:07]} Qe7 {[%emt 0:00:57]} 11. Qxf5 {[%emt 0:00:05]} cxd5 {[%emt 0:00:04]} 12. Qc8+ {[%emt 0:01:16]} Qd8 {[%emt 0:00:08]} 13. Qxb7 {[%emt 0:00:31]} 1-0

[Event "56th Biel Festival Rapid 2023"]
[Site "Biel"]
[Date "2024.04.13"]
[Round "1.10"]
[White "Gillieron, Jean-Marc"]
[Black "Rosen, Eric"]
[Result "0-1"]
[WhiteElo "1746"]
[BlackElo "2344"]
[PlyCount "22"]
[EventDate "2023.07.16"]
[EventType "swiss"]
[EventCountry "SUI"]
[TimeControl "900+5"]

1. d4 {[%emt 0:00:16]} d5 {[%emt 0:00:13]} 2. c4 {[%emt 0:00:02]} e6 {[%emt 0:00:01]} 3. Nf3 {[%emt 0:00:02]} Nf6 {[%emt 0:00:01]} 4. g3 {[%emt 0:00:02]} dxc4 {[%emt 0:00:02]} 5. Nc3 {[%emt 0:00:14]} c5 {[%emt 0:00:19]} 6. Qa4+ {[%emt 0:00:37]} Nc6 {[%emt 0:00:14]} 7. e3 {[%emt 0:00:26]} cxd4 {[%emt 0:00:30]} 8. exd4 {[%emt 0:00:02]} Bd7 {[%emt 0:01:01]} 9. Qxc4 {[%emt 0:00:11]} Nb4 {[%emt 0:00:01]} 10. Bg2 {[%emt 0:00:52]} Nc2+ {[%emt 0:00:09]} 11. Kd1 {[%emt 0:00:10]} Nxa1 {[%emt 0:00:10]} 0-1

[Event "56th Biel Festival Rapid 2023"]
[Site "Biel"]
[Date "2024.04.13"]
[Round "1.12"]
[White "Tissier, Corentin"]
[Black "Schnepp, Gunnar"]
[Result "*"]
[WhiteElo "1754"]
[BlackElo "2278"]
[PlyCount "27"]
[EventDate "2023.07.16"]
[EventType "swiss"]
[EventCountry "SUI"]
[TimeControl "900+5"]

1. e4 {[%emt 0:00:15]} c5 {[%emt 0:00:03]} 2. Nf3 {[%emt 0:00:03]} d6 {[%emt 0:00:03]} 3. d4 {[%emt 0:00:01]} cxd4 {[%emt 0:00:01]} 4. Nxd4 {[%emt 0:00:02]} Nf6 {[%emt 0:00:01]} 5. Nc3 {[%emt 0:00:03]} a6 {[%emt 0:00:02]} 6. f3 {[%emt 0:00:04]} e6 {[%emt 0:00:23]} 7. Be3 {[%emt 0:00:16]} b5 {[%emt 0:00:26]} 8. g4 {[%emt 0:00:09]} Bb7 {[%emt 0:00:18]} 9. g5 {[%emt 0:00:11]} Nfd7 {[%emt 0:00:14]} 10. Qd2 {[%emt 0:00:22]} Nc6 {[%emt 0:04:01]} 11. Nxc6 {[%emt 0:00:59]} Bxc6 {[%emt 0:00:01]} 12. O-O-O {[%emt 0:00:28]} Ne5 {[%emt 0:01:02]} 13. Be2 {[%emt 0:01:12]} b4 {[%emt 0:00:16]} 14. Nb1 {[%emt 0:00:02]} *

[Event "56th Biel Festival Rapid 2023"]
[Site "Biel"]
[Date "2024.04.13"]
[Round "1.14"]
[White "Ramadugu Akshay"]
[Black "Huston, Gus"]
[Result "*"]
[WhiteElo "1844"]
[BlackElo "2341"]
[PlyCount "33"]
[EventDate "2023.07.16"]
[EventType "swiss"]
[EventCountry "SUI"]
[TimeControl "900+5"]

1. d4 {[%emt 0:03:34]} d5 {[%emt 0:00:01]} 2. c4 {[%emt 0:00:09]} e6 {[%emt 0:00:00]} 3. Nc3 {[%emt 0:00:02]} Nf6 {[%emt 0:00:01]} 4. cxd5 {[%emt 0:00:03]} exd5 {[%emt 0:00:01]} 5. Bg5 {[%emt 0:00:02]} c6 {[%emt 0:00:01]} 6. e3 {[%emt 0:00:01]} Nbd7 {[%emt 0:00:01]} 7. Bd3 {[%emt 0:00:04]} Be7 {[%emt 0:00:02]} 8. Qc2 {[%emt 0:00:03]} O-O {[%emt 0:00:02]} 9. h3 {[%emt 0:00:05]} Re8 {[%emt 0:00:02]} 10. Nf3 {[%emt 0:00:02]} h6 {[%emt 0:00:01]} 11. Bf4 {[%emt 0:00:01]} Bf8 {[%emt 0:00:07]} 12. O-O {[%emt 0:00:16]} Nb6 {[%emt 0:00:04]} 13. Bh2 {[%emt 0:01:29]} Bd6 {[%emt 0:00:07]} 14. Ne5 {[%emt 0:00:14]} Be6 {[%emt 0:00:18]} 15. f4 {[%emt 0:00:21]} c5 {[%emt 0:00:02]} 16. Qf2 {[%emt 0:00:14]} Rc8 {[%emt 0:02:24]} 17. g4 {[%emt 0:00:45]} *

[Event "56th Biel Festival Rapid 2023"]
[Site "Biel"]
[Date "2024.04.13"]
[Round "1.16"]
[White "Parlak, Selahattin"]
[Black "Vantika Agrawal"]
[Result "*"]
[WhiteElo "1639"]
[BlackElo "2428"]
[PlyCount "37"]
[EventDate "2023.07.16"]
[EventType "swiss"]
[EventCountry "SUI"]
[TimeControl "900+5"]

1. d4 {[%emt 0:00:12]} Nf6 {[%emt 0:00:04]} 2. Nc3 {[%emt 0:00:04]} d5 {[%emt 0:00:02]} 3. Nf3 {[%emt 0:00:01]} g6 {[%emt 0:00:07]} 4. Bg5 {[%emt 0:00:04]} Bg7 {[%emt 0:00:04]} 5. e3 {[%emt 0:00:13]} O-O {[%emt 0:00:09]} 6. Bd3 {[%emt 0:00:30]} c5 {[%emt 0:00:11]} 7. dxc5 {[%emt 0:00:20]} Qa5 {[%emt 0:00:04]} 8. Nd2 {[%emt 0:00:30]} Qxc5 {[%emt 0:00:08]} 9. O-O {[%emt 0:00:24]} Nc6 {[%emt 0:00:41]} 10. Nb3 {[%emt 0:00:21]} Qd6 {[%emt 0:00:07]} 11. Bf4 {[%emt 0:00:26]} e5 {[%emt 0:00:09]} 12. Bg3 {[%emt 0:00:14]} Nh5 {[%emt 0:02:31]} 13. Nb5 {[%emt 0:00:37]} Qe7 {[%emt 0:00:06]} 14. Nc3 {[%emt 0:00:57]} Be6 {[%emt 0:00:05]} 15. Bb5 {[%emt 0:00:04]} Rfd8 {[%emt 0:00:18]} 16. Ne2 {[%emt 0:00:35]} Nxg3 {[%emt 0:00:11]} 17. Nxg3 {[%emt 0:00:03]} h5 {[%emt 0:00:22]} 18. c3 {[%emt 0:00:04]} h4 {[%emt 0:00:05]} 19. f4 {[%emt 0:00:19]} *

[Event "56th Biel Festival Rapid 2023"]
[Site "Biel"]
[Date "2024.04.13"]
[Round "1.18"]
[White "Aeschbacher, Dimitri"]
[Black "Toktomushev, Teimur"]
[Result "*"]
[WhiteElo "1761"]
[BlackElo "2206"]
[PlyCount "22"]
[EventDate "2023.07.16"]
[EventType "swiss"]
[EventCountry "SUI"]
[TimeControl "900+5"]

1. e4 {[%emt 0:00:15]} c5 {[%emt 0:00:01]} 2. Nf3 {[%emt 0:00:02]} e6 {[%emt 0:00:01]} 3. d4 {[%emt 0:00:06]} cxd4 {[%emt 0:00:02]} 4. Nxd4 {[%emt 0:00:00]} a6 {[%emt 0:00:01]} 5. Bd3 {[%emt 0:00:00]} Bc5 {[%emt 0:00:02]} 6. c3 {[%emt 0:00:04]} Ne7 {[%emt 0:01:51]} 7. O-O {[%emt 0:00:05]} Qc7 {[%emt 0:02:04]} 8. Nd2 {[%emt 0:00:48]} Nbc6 {[%emt 0:00:32]} 9. N2f3 {[%emt 0:00:16]} Ng6 {[%emt 0:02:40]} 10. Be3 {[%emt 0:00:14]} b6 {[%emt 0:00:21]} 11. b4 {[%emt 0:00:45]} Be7 {[%emt 0:01:42]} *

[Event "56th Biel Festival Rapid 2023"]
[Site "Biel"]
[Date "2024.04.13"]
[Round "1.19"]
[White "Vincenti, Leonardo"]
[Black "Rahimi, Hamid"]
[Result "*"]
[WhiteElo "2117"]
[BlackElo "1484"]
[PlyCount "58"]
[EventDate "2023.07.16"]
[EventType "swiss"]
[EventCountry "SUI"]
[TimeControl "900+5"]

1. e4 {[%emt 0:00:11]} d5 {[%emt 0:00:01]} 2. exd5 {[%emt 0:00:02]} Qxd5 {[%emt 0:00:05]} 3. Nc3 {[%emt 0:00:02]} Qd8 {[%emt 0:00:01]} 4. d4 {[%emt 0:00:03]} Nf6 {[%emt 0:00:00]} 5. Nf3 {[%emt 0:00:04]} Bg4 {[%emt 0:00:00]} 6. Be2 {[%emt 0:00:02]} e6 {[%emt 0:00:00]} 7. h3 {[%emt 0:00:09]} Bh5 {[%emt 0:00:01]} 8. O-O {[%emt 0:00:05]} h6 {[%emt 0:00:01]} 9. Bf4 {[%emt 0:00:04]} a6 {[%emt 0:00:04]} 10. Qd2 {[%emt 0:00:05]} Bd6 {[%emt 0:00:01]} 11. Ne5 {[%emt 0:00:09]} Bxe2 {[%emt 0:00:02]} 12. Qxe2 {[%emt 0:00:04]} O-O {[%emt 0:00:10]} 13. Qf3 {[%emt 0:00:06]} c6 {[%emt 0:00:32]} 14. Rad1 {[%emt 0:00:07]} Qc7 {[%emt 0:00:06]} 15. Rfe1 {[%emt 0:00:07]} Nbd7 {[%emt 0:00:17]} 16. Ne4 {[%emt 0:00:16]} Nxe4 {[%emt 0:00:13]} 17. Rxe4 {[%emt 0:00:11]} Nf6 {[%emt 0:00:03]} 18. Re2 {[%emt 0:00:07]} Bxe5 {[%emt 0:00:03]} 19. Bxe5 {[%emt 0:00:06]} Qe7 {[%emt 0:00:12]} 20. Qg3 {[%emt 0:00:10]} Rfd8 {[%emt 0:00:31]} 21. Rd3 {[%emt 0:00:12]} Nh5 {[%emt 0:00:55]} 22. Qg4 {[%emt 0:00:11]} Qg5 {[%emt 0:00:03]} 23. Qf3 {[%emt 0:00:16]} f6 {[%emt 0:00:30]} 24. Bc7 {[%emt 0:00:29]} Re8 {[%emt 0:00:20]} 25. Rde3 {[%emt 0:00:16]} Kf7 {[%emt 0:00:53]} 26. Re5 {[%emt 0:00:20]} f5 {[%emt 0:01:30]} 27. R5e3 {[%emt 0:00:21]} Nf6 {[%emt 0:00:17]} 28. Be5 {[%emt 0:00:21]} Nd5 {[%emt 0:00:08]} 29. Rb3 {[%emt 0:00:06]} b5 {[%emt 0:00:13]} *

[Event "56th Biel Festival Rapid 2023"]
[Site "Biel"]
[Date "2024.04.13"]
[Round "1.20"]
[White "Giambrone, Salvatore"]
[Black "Rohrer, Christophe"]
[Result "*"]
[WhiteElo "1772"]
[BlackElo "2312"]
[PlyCount "36"]
[EventDate "2023.07.16"]
[EventType "swiss"]
[EventCountry "SUI"]
[TimeControl "900+5"]

1. d4 {[%emt 0:00:21]} Nf6 {[%emt 0:00:02]} 2. Nf3 {[%emt 0:00:01]} d5 {[%emt 0:00:04]} 3. c4 {[%emt 0:00:01]} e6 {[%emt 0:00:02]} 4. Nc3 {[%emt 0:00:01]} Bb4 {[%emt 0:00:03]} 5. a3 {[%emt 0:00:05]} Bxc3+ {[%emt 0:00:05]} 6. bxc3 {[%emt 0:00:06]} c5 {[%emt 0:00:06]} 7. e3 {[%emt 0:00:00]} Nc6 {[%emt 0:00:05]} 8. Qc2 {[%emt 0:00:25]} O-O {[%emt 0:00:08]} 9. Bd3 {[%emt 0:00:54]} dxc4 {[%emt 0:00:10]} 10. Bxc4 {[%emt 0:00:05]} Qc7 {[%emt 0:00:28]} 11. dxc5 {[%emt 0:01:27]} Na5 {[%emt 0:00:11]} 12. Bd3 {[%emt 0:00:13]} Qxc5 {[%emt 0:00:12]} 13. O-O {[%emt 0:00:04]} b6 {[%emt 0:00:08]} 14. a4 {[%emt 0:00:10]} Rd8 {[%emt 0:01:28]} 15. Ba3 {[%emt 0:00:24]} Qc7 {[%emt 0:00:02]} 16. Nd4 {[%emt 0:00:31]} Bb7 {[%emt 0:00:32]} 17. Nb5 {[%emt 0:01:09]} Qc6 {[%emt 0:00:03]} 18. f3 {[%emt 0:00:19]} Rd7 {[%emt 0:01:41]} *

[Event "56th Biel Festival Rapid 2023"]
[Site "Biel"]
[Date "2024.04.13"]
[Round "1.21"]
[White "Ermeni, Avni"]
[Black "Michel, Jean-claude"]
[Result "*"]
[WhiteElo "2138"]
[BlackElo "1720"]
[PlyCount "27"]
[EventDate "2023.07.16"]
[EventType "swiss"]
[EventCountry "SUI"]
[TimeControl "900+5"]

1. c4 {[%emt 0:00:13]} Nf6 {[%emt 0:00:02]} 2. Nc3 {[%emt 0:00:04]} e6 {[%emt 0:00:05]} 3. g3 {[%emt 0:00:05]} g6 {[%emt 0:00:14]} 4. Bg2 {[%emt 0:00:02]} Bg7 {[%emt 0:00:02]} 5. d4 {[%emt 0:00:09]} d5 {[%emt 0:00:27]} 6. Nf3 {[%emt 0:00:05]} O-O {[%emt 0:00:12]} 7. O-O {[%emt 0:00:02]} c5 {[%emt 0:00:15]} 8. cxd5 {[%emt 0:00:07]} cxd4 {[%emt 0:00:16]} 9. Nxd4 {[%emt 0:00:11]} exd5 {[%emt 0:00:17]} 10. Bg5 {[%emt 0:00:39]} Be6 {[%emt 0:00:15]} 11. Nxe6 {[%emt 0:01:46]} fxe6 {[%emt 0:00:05]} 12. Bh3 {[%emt 0:00:09]} Qb6 {[%emt 0:00:53]} 13. Qb3 {[%emt 0:00:17]} Re8 {[%emt 0:03:19]} 14. Rac1 {[%emt 0:02:11]} *

[Event "56th Biel Festival Rapid 2023"]
[Site "Biel"]
[Date "2024.04.13"]
[Round "1.23"]
[White "Erne, Raphael"]
[Black "Zarriess, Benjamin"]
[Result "*"]
[WhiteElo "2077"]
[BlackElo "1698"]
[PlyCount "24"]
[EventDate "2023.07.16"]
[EventType "swiss"]
[EventCountry "SUI"]
[TimeControl "900+5"]

1. c4 {[%emt 0:00:16]} e6 {[%emt 0:00:02]} 2. g3 {[%emt 0:00:02]} d5 {[%emt 0:00:03]} 3. Bg2 {[%emt 0:00:01]} Nf6 {[%emt 0:00:05]} 4. Nf3 {[%emt 0:00:02]} d4 {[%emt 0:00:15]} 5. O-O {[%emt 0:00:21]} Be7 {[%emt 0:00:10]} 6. e3 {[%emt 0:00:45]} Nc6 {[%emt 0:00:48]} 7. a3 {[%emt 0:00:51]} a5 {[%emt 0:00:16]} 8. exd4 {[%emt 0:01:05]} Nxd4 {[%emt 0:00:34]} 9. d3 {[%emt 0:00:58]} O-O {[%emt 0:00:22]} 10. Nc3 {[%emt 0:00:32]} Rb8 {[%emt 0:01:55]} 11. Nxd4 {[%emt 0:00:49]} Qxd4 {[%emt 0:00:12]} 12. Be3 {[%emt 0:00:06]} Qd7 {[%emt 0:01:05]} *

[Event "56th Biel Festival Rapid 2023"]
[Site "Biel"]
[Date "2024.04.13"]
[Round "1.24"]
[White "Paholok, Igor"]
[Black "Angst, Robin"]
[Result "*"]
[WhiteElo "1710"]
[BlackElo "2215"]
[PlyCount "28"]
[EventDate "2023.07.16"]
[EventType "swiss"]
[EventCountry "SUI"]
[TimeControl "900+5"]

1. d4 {[%emt 0:00:15]} f5 {[%emt 0:00:01]} 2. Nf3 {[%emt 0:00:04]} Nf6 {[%emt 0:00:01]} 3. e3 {[%emt 0:00:00]} g6 {[%emt 0:00:04]} 4. Bd3 {[%emt 0:00:02]} Bg7 {[%emt 0:00:01]} 5. O-O {[%emt 0:00:01]} O-O {[%emt 0:00:01]} 6. Nbd2 {[%emt 0:00:02]} d6 {[%emt 0:00:04]} 7. c3 {[%emt 0:00:03]} Nc6 {[%emt 0:00:08]} 8. e4 {[%emt 0:00:10]} e5 {[%emt 0:00:17]} 9. dxe5 {[%emt 0:00:16]} dxe5 {[%emt 0:00:07]} 10. Bc4+ {[%emt 0:00:16]} Kh8 {[%emt 0:00:02]} 11. exf5 {[%emt 0:00:14]} gxf5 {[%emt 0:00:19]} 12. Ng5 {[%emt 0:00:13]} Qe7 {[%emt 0:00:31]} 13. Re1 {[%emt 0:00:30]} Ng4 {[%emt 0:00:59]} 14. Ndf3 {[%emt 0:00:56]} h6 {[%emt 0:04:28]} *

[Event "56th Biel Festival Rapid 2023"]
[Site "Biel"]
[Date "2024.04.13"]
[Round "1.25"]
[White "Ouellet, Maili-Jade"]
[Black "Bonauer, Stephan"]
[Result "*"]
[WhiteElo "2201"]
[BlackElo "1504"]
[PlyCount "26"]
[EventDate "2023.07.16"]
[EventType "swiss"]
[EventCountry "SUI"]
[TimeControl "900+5"]

1. e4 {[%emt 0:00:11]} e5 {[%emt 0:00:06]} 2. Nf3 {[%emt 0:00:02]} Nc6 {[%emt 0:00:03]} 3. Bb5 {[%emt 0:00:02]} Nf6 {[%emt 0:00:09]} 4. O-O {[%emt 0:00:05]} a6 {[%emt 0:00:02]} 5. Ba4 {[%emt 0:00:08]} b5 {[%emt 0:00:12]} 6. Bb3 {[%emt 0:00:02]} Bc5 {[%emt 0:00:06]} 7. c3 {[%emt 0:00:10]} O-O {[%emt 0:00:19]} 8. d4 {[%emt 0:00:12]} exd4 {[%emt 0:00:45]} 9. cxd4 {[%emt 0:01:16]} Bb6 {[%emt 0:00:05]} 10. e5 {[%emt 0:00:05]} Ne8 {[%emt 0:01:04]} 11. d5 {[%emt 0:01:14]} Na5 {[%emt 0:00:51]} 12. Bc2 {[%emt 0:01:02]} d6 {[%emt 0:00:57]} 13. Ng5 {[%emt 0:01:05]} g6 {[%emt 0:00:59]} *

[Event "56th Biel Festival Rapid 2023"]
[Site "Biel"]
[Date "2024.04.13"]
[Round "1.27"]
[White "Kocharin, Timur"]
[Black "Tedone, Francesco"]
[Result "*"]
[WhiteElo "2225"]
[BlackElo "1577"]
[PlyCount "33"]
[EventDate "2023.07.16"]
[EventType "swiss"]
[EventCountry "SUI"]
[TimeControl "900+5"]

1. d4 {[%emt 0:00:14]} Nf6 {[%emt 0:00:01]} 2. c4 {[%emt 0:00:03]} Nc6 {[%emt 0:00:02]} 3. Nf3 {[%emt 0:00:07]} e6 {[%emt 0:00:05]} 4. Nc3 {[%emt 0:00:07]} Bb4 {[%emt 0:00:08]} 5. Qc2 {[%emt 0:00:04]} O-O {[%emt 0:00:17]} 6. Bg5 {[%emt 0:00:19]} h6 {[%emt 0:00:28]} 7. Bh4 {[%emt 0:00:02]} Be7 {[%emt 0:01:21]} 8. e4 {[%emt 0:00:09]} d6 {[%emt 0:00:32]} 9. Be2 {[%emt 0:00:12]} Bd7 {[%emt 0:01:17]} 10. O-O {[%emt 0:00:05]} Qc8 {[%emt 0:00:27]} 11. e5 {[%emt 0:01:27]} dxe5 {[%emt 0:01:06]} 12. dxe5 {[%emt 0:00:11]} Nh7 {[%emt 0:00:33]} 13. Bd3 {[%emt 0:00:17]} Ng5 {[%emt 0:00:49]} 14. Nxg5 {[%emt 0:00:18]} Bxg5 {[%emt 0:00:02]} 15. Bxg5 {[%emt 0:00:07]} hxg5 {[%emt 0:00:06]} 16. Qe2 {[%emt 0:00:08]} Nd4 {[%emt 0:00:35]} 17. Qg4 {[%emt 0:00:14]} *

[Event "56th Biel Festival Rapid 2023"]
[Site "Biel"]
[Date "2024.04.13"]
[Round "1.28"]
[White "Keymer, Cecilia"]
[Black "Kreienbuehl, Andreas"]
[Result "*"]
[WhiteElo "1698"]
[BlackElo "2138"]
[PlyCount "20"]
[EventDate "2023.07.16"]
[EventType "swiss"]
[EventCountry "SUI"]
[TimeControl "900+5"]

1. d4 {[%emt 0:00:16]} d5 {[%emt 0:00:05]} 2. c4 {[%emt 0:00:03]} c6 {[%emt 0:00:05]} 3. Nf3 {[%emt 0:00:06]} Nf6 {[%emt 0:00:07]} 4. e3 {[%emt 0:00:05]} Bf5 {[%emt 0:00:12]} 5. cxd5 {[%emt 0:00:18]} cxd5 {[%emt 0:00:15]} 6. Nc3 {[%emt 0:00:09]} Nc6 {[%emt 0:01:14]} 7. Ne5 {[%emt 0:00:29]} e6 {[%emt 0:01:23]} 8. g4 {[%emt 0:01:09]} Bg6 {[%emt 0:01:45]} 9. h4 {[%emt 0:00:13]} h5 {[%emt 0:03:28]} 10. Nxg6 {[%emt 0:00:19]} fxg6 {[%emt 0:00:02]} *